[Event "*** SCC Grand Prix: Titled Tuesday Blitz"]
[Site "Chess.com"]
[Date "2020.06.02"]
[Round "3"]
[White "Sweafty"]
[Black "DrRiebert"]
[Result "1-0"]
[WhiteElo "2512"]
[BlackElo "2293"]
[TimeControl "180+1"]
[EndTime "10:28:48 PDT"]
[Termination "Sweafty won by resignation"]

1. Nf3 {[%clk 0:03:00.9]} 1... Nf6 {[%clk 0:02:59.2]} 2. c4 {[%clk 0:03:01.2]}
2... c6 {[%clk 0:02:59.5]} 3. g3 {[%clk 0:03:01.2]} 3... d5 {[%clk 0:02:59.8]}
4. Bg2 {[%clk 0:03:01.9]} 4... dxc4 {[%clk 0:03:00]} 5. a4 {[%clk 0:03:01.5]}
5... g6 {[%clk 0:02:51.5]} 6. O-O {[%clk 0:03:00.1]} 6... Bg7 {[%clk 0:02:51.9]}
7. Na3 {[%clk 0:03:00.4]} 7... O-O {[%clk 0:02:45.3]} 8. Nxc4 {[%clk 0:03:00.6]}
8... Na6 {[%clk 0:02:39]} 9. d3 {[%clk 0:02:58.3]} 9... Nb4 {[%clk 0:02:32.9]}
10. Bd2 {[%clk 0:02:55.8]} 10... a5 {[%clk 0:02:25.9]} 11. Qb3 {[%clk
0:02:52.5]} 11... c5 {[%clk 0:02:00.2]} 12. Bc3 {[%clk 0:02:39.8]} 12... Be6
{[%clk 0:01:52.4]} 13. Ng5 {[%clk 0:02:22.2]} 13... Bd5 {[%clk 0:01:48.6]} 14.
e4 {[%clk 0:02:20.1]} 14... Bc6 {[%clk 0:01:48.3]} 15. Rad1 {[%clk 0:02:15.4]}
15... Ne8 {[%clk 0:01:13.1]} 16. Bxg7 {[%clk 0:01:54.6]} 16... Nxg7 {[%clk
0:01:14]} 17. Ne5 {[%clk 0:01:52.8]} 17... Be8 {[%clk 0:01:04.8]} 18. d4 {[%clk
0:01:37.4]} 18... cxd4 {[%clk 0:00:31.2]} 19. Ngf3 {[%clk 0:01:34.5]} 19... Qc7
{[%clk 0:00:28.3]} 20. Rxd4 {[%clk 0:01:32.7]} 20... Ne6 {[%clk 0:00:26.2]} 21.
Rc4 {[%clk 0:01:32]} 21... Qb6 {[%clk 0:00:23]} 22. Rfc1 {[%clk 0:01:25.6]}
22... Rd8 {[%clk 0:00:22.3]} 23. Bh3 {[%clk 0:01:22.8]} 23... Nd4 {[%clk
0:00:20.1]} 24. Nxd4 {[%clk 0:00:44.7]} 24... Rxd4 {[%clk 0:00:21]} 25. Rc8
{[%clk 0:00:40.8]} 25... Qf6 {[%clk 0:00:12.5]} 26. Ng4 {[%clk 0:00:29.7]} 26...
Qd6 {[%clk 0:00:11.6]} 27. e5 {[%clk 0:00:27.4]} 27... Qb6 {[%clk 0:00:06.5]}
28. e6 {[%clk 0:00:21.6]} 28... f5 {[%clk 0:00:03.4]} 29. Ne5 {[%clk 0:00:18.5]}
29... Qd6 {[%clk 0:00:02.8]} 30. Nd7 {[%clk 0:00:18.4]} 30... Bxd7 {[%clk
0:00:03.1]} 31. Rxf8+ {[%clk 0:00:18.4]} 31... Kg7 {[%clk 0:00:03.7]} 32. exd7
{[%clk 0:00:19.3]} 32... Kxf8 {[%clk 0:00:03.4]} 33. Rc8+ {[%clk 0:00:16]} 33...
Kg7 {[%clk 0:00:03.4]} 34. d8=Q {[%clk 0:00:16.2]} 34... Rd1+ {[%clk 0:00:03.3]}
35. Qxd1 {[%clk 0:00:15.8]} 1-0

[Event "*** SCC Grand Prix: Titled Tuesday Blitz"]
[Site "Chess.com"]
[Date "2020.06.02"]
[Round "3"]
[White "Morshynska"]
[Black "BIG_Pirate"]
[Result "0-1"]
[WhiteElo "2160"]
[BlackElo "2362"]
[TimeControl "180+1"]
[EndTime "10:28:48 PDT"]
[Termination "BIG_Pirate won on time"]

1. e4 {[%clk 0:03:00.9]} 1... d5 {[%clk 0:02:59.8]} 2. exd5 {[%clk 0:03:00.1]}
2... Qxd5 {[%clk 0:03:00.7]} 3. Nc3 {[%clk 0:02:59.4]} 3... Qa5 {[%clk
0:03:00.7]} 4. d4 {[%clk 0:02:58.9]} 4... Nf6 {[%clk 0:03:00.8]} 5. Bc4 {[%clk
0:02:55.1]} 5... Nc6 {[%clk 0:03:00.5]} 6. Nf3 {[%clk 0:02:40.5]} 6... Bg4
{[%clk 0:02:59.6]} 7. h3 {[%clk 0:02:27.8]} 7... Bxf3 {[%clk 0:02:59]} 8. Qxf3
{[%clk 0:02:28.4]} 8... O-O-O {[%clk 0:02:59.2]} 9. Be3 {[%clk 0:02:15.2]} 9...
Nxd4 {[%clk 0:02:51.3]} 10. Bxd4 {[%clk 0:02:05.9]} 10... Rxd4 {[%clk
0:02:52.2]} 11. Bxf7 {[%clk 0:01:51.8]} 11... Re4+ {[%clk 0:02:52.1]} 12. Kf1
{[%clk 0:01:38.5]} 12... Re5 {[%clk 0:02:52.5]} 13. g4 {[%clk 0:01:23.6]} 13...
e6 {[%clk 0:02:50.2]} 14. Kg2 {[%clk 0:01:18.7]} 14... Bd6 {[%clk 0:02:44.9]}
15. Rhe1 {[%clk 0:01:16.1]} 15... Rf8 {[%clk 0:01:44]} 16. Bxe6+ {[%clk
0:01:02.5]} 16... Kb8 {[%clk 0:01:44]} 17. Rad1 {[%clk 0:00:36]} 17... a6 {[%clk
0:01:36.8]} 18. Bc4 {[%clk 0:00:19.9]} 18... Ne4 {[%clk 0:01:24.4]} 19. Qd3
{[%clk 0:00:15]} 19... Nxf2 {[%clk 0:01:16.3]} 20. Qd4 {[%clk 0:00:12.1]} 20...
Nxd1 {[%clk 0:01:12.7]} 21. Rxd1 {[%clk 0:00:13]} 21... h5 {[%clk 0:01:00.1]}
22. Ne4 {[%clk 0:00:12.2]} 22... hxg4 {[%clk 0:00:40]} 23. Nxd6 {[%clk
0:00:09.5]} 23... gxh3+ {[%clk 0:00:40.1]} 24. Kh1 {[%clk 0:00:08.5]} 24... Rd8
{[%clk 0:00:22.6]} 25. Qg1 {[%clk 0:00:06.1]} 25... Rxd6 {[%clk 0:00:20.3]} 26.
Rxd6 {[%clk 0:00:05]} 26... cxd6 {[%clk 0:00:21.2]} 27. c3 {[%clk 0:00:03.3]}
27... Qc7 {[%clk 0:00:16.5]} 28. Bf1 {[%clk 0:00:02.8]} 28... Qe7 {[%clk
0:00:12.7]} 29. Bxh3 {[%clk 0:00:01.1]} 29... Re1 {[%clk 0:00:09.4]} 0-1

[Event "*** SCC Grand Prix: Titled Tuesday Blitz"]
[Site "Chess.com"]
[Date "2020.06.02"]
[Round "3"]
[White "snap_man"]
[Black "XxPetroffsxX"]
[Result "1-0"]
[WhiteElo "2298"]
[BlackElo "2045"]
[TimeControl "180+1"]
[EndTime "10:28:48 PDT"]
[Termination "snap_man won on time"]

1. e4 {[%clk 0:02:59.8]} 1... c6 {[%clk 0:02:58.8]} 2. d4 {[%clk 0:02:59.6]}
2... d5 {[%clk 0:02:58.5]} 3. Nc3 {[%clk 0:03:00.2]} 3... dxe4 {[%clk
0:02:58.1]} 4. Nxe4 {[%clk 0:03:01.1]} 4... Bf5 {[%clk 0:02:58.4]} 5. Ng3 {[%clk
0:03:00.9]} 5... Bg6 {[%clk 0:02:58.7]} 6. Bd3 {[%clk 0:03:01]} 6... Nf6 {[%clk
0:02:57.2]} 7. Nf3 {[%clk 0:02:59.2]} 7... Nbd7 {[%clk 0:02:54.6]} 8. O-O {[%clk
0:02:59.2]} 8... e6 {[%clk 0:02:52.6]} 9. b3 {[%clk 0:02:59.3]} 9... Qc7 {[%clk
0:02:51.4]} 10. Bb2 {[%clk 0:02:59.1]} 10... Bd6 {[%clk 0:02:50.6]} 11. c4
{[%clk 0:02:57.7]} 11... Bxd3 {[%clk 0:02:35.6]} 12. Qxd3 {[%clk 0:02:57.6]}
12... h5 {[%clk 0:02:35.2]} 13. Rfe1 {[%clk 0:02:56.1]} 13... h4 {[%clk
0:02:32.7]} 14. Nf1 {[%clk 0:02:56]} 14... Ng4 {[%clk 0:02:18.2]} 15. h3 {[%clk
0:02:53.7]} 15... O-O-O {[%clk 0:02:09]} 16. hxg4 {[%clk 0:02:19.7]} 16... Nf6
{[%clk 0:02:04.4]} 17. N1h2 {[%clk 0:02:12.3]} 17... h3 {[%clk 0:01:59.1]} 18.
c5 {[%clk 0:02:02.6]} 18... Bxh2+ {[%clk 0:01:55.9]} 19. Nxh2 {[%clk 0:02:00.5]}
19... hxg2 {[%clk 0:01:55]} 20. Qg3 {[%clk 0:02:00.6]} 20... Qxg3 {[%clk
0:01:36.7]} 21. fxg3 {[%clk 0:02:00.2]} 21... Rh3 {[%clk 0:01:35.8]} 22. g5
{[%clk 0:01:48.9]} 22... Nd5 {[%clk 0:01:29.4]} 23. Kxg2 {[%clk 0:01:44.5]}
23... Rdh8 {[%clk 0:01:28]} 24. Nf3 {[%clk 0:01:35.5]} 24... Ne7 {[%clk
0:01:12]} 25. Nh4 {[%clk 0:01:33.8]} 25... R3xh4 {[%clk 0:01:07.2]} 26. gxh4
{[%clk 0:01:33.8]} 26... Rxh4 {[%clk 0:00:55.6]} 27. Kf3 {[%clk 0:01:32.8]}
27... Nf5 {[%clk 0:00:54.4]} 28. d5 {[%clk 0:01:22]} 28... cxd5 {[%clk
0:00:50.3]} 29. g6 {[%clk 0:01:16.1]} 29... fxg6 {[%clk 0:00:26.9]} 30. Rxe6
{[%clk 0:01:11.3]} 30... g5 {[%clk 0:00:26.3]} 31. Re5 {[%clk 0:01:05.6]} 31...
Rf4+ {[%clk 0:00:24]} 32. Kg2 {[%clk 0:01:02.2]} 32... Nh4+ {[%clk 0:00:20.7]}
33. Kh1 {[%clk 0:01:02.5]} 33... Nf3 {[%clk 0:00:17.8]} 34. Rxd5 {[%clk
0:00:52.7]} 34... Rh4+ {[%clk 0:00:13.8]} 35. Kg2 {[%clk 0:00:52.7]} 35... g4
{[%clk 0:00:13.4]} 36. Kg3 {[%clk 0:00:53]} 36... g5 {[%clk 0:00:10.8]} 37. Rxg5
{[%clk 0:00:50.5]} 37... Rh2 {[%clk 0:00:10.1]} 38. Rxg4 {[%clk 0:00:49.1]} 1-0

[Event "*** SCC Grand Prix: Titled Tuesday Blitz"]
[Site "Chess.com"]
[Date "2020.06.02"]
[Round "3"]
[White "zaur-mammadov"]
[Black "51616516516"]
[Result "1-0"]
[WhiteElo "2589"]
[BlackElo "2382"]
[TimeControl "180+1"]
[EndTime "10:28:49 PDT"]
[Termination "zaur-mammadov won on time"]

1. e4 {[%clk 0:03:00.9]} 1... c5 {[%clk 0:02:59.7]} 2. c3 {[%clk 0:03:00.6]}
2... Nf6 {[%clk 0:02:59.2]} 3. e5 {[%clk 0:03:00.9]} 3... Nd5 {[%clk 0:02:58.4]}
4. Nf3 {[%clk 0:03:01.8]} 4... Nc6 {[%clk 0:02:57.7]} 5. d4 {[%clk 0:03:02.7]}
5... cxd4 {[%clk 0:02:57.3]} 6. cxd4 {[%clk 0:03:03.6]} 6... d6 {[%clk 0:02:56]}
7. Bc4 {[%clk 0:03:04.1]} 7... Nb6 {[%clk 0:02:56.1]} 8. Bb5 {[%clk 0:03:04.1]}
8... dxe5 {[%clk 0:02:56.3]} 9. Nxe5 {[%clk 0:03:05]} 9... Bd7 {[%clk
0:02:56.7]} 10. Nxd7 {[%clk 0:03:05.4]} 10... Qxd7 {[%clk 0:02:55.9]} 11. O-O
{[%clk 0:03:06.3]} 11... e6 {[%clk 0:02:55.6]} 12. Nc3 {[%clk 0:03:06.8]} 12...
a6 {[%clk 0:02:49.6]} 13. Bxc6 {[%clk 0:03:06.3]} 13... Qxc6 {[%clk 0:02:50.5]}
14. Qg4 {[%clk 0:03:05.9]} 14... Nd5 {[%clk 0:02:27.3]} 15. Be3 {[%clk
0:02:53.7]} 15... Nf6 {[%clk 0:02:23.4]} 16. Qg3 {[%clk 0:02:48.3]} 16... Bd6
{[%clk 0:02:19.1]} 17. Qxg7 {[%clk 0:02:30.2]} 17... Rg8 {[%clk 0:02:16.8]} 18.
d5 {[%clk 0:02:30.7]} 18... Bxh2+ {[%clk 0:01:24]} 19. Kh1 {[%clk 0:02:18.4]}
19... exd5 {[%clk 0:01:22.1]} 20. Qh6 {[%clk 0:02:15.7]} 20... Be5 {[%clk
0:01:15.9]} 21. f3 {[%clk 0:01:42.3]} 21... O-O-O {[%clk 0:00:26.5]} 22. Rac1
{[%clk 0:01:38.8]} 22... Kb8 {[%clk 0:00:25.6]} 23. Ne4 {[%clk 0:01:23.7]} 23...
Qe6 {[%clk 0:00:24.9]} 24. Ng5 {[%clk 0:00:56]} 24... Qf5 {[%clk 0:00:22.9]} 25.
Nxf7 {[%clk 0:00:46.1]} 25... Ka8 {[%clk 0:00:03.6]} 26. Nxd8 {[%clk 0:00:40.9]}
26... Rxd8 {[%clk 0:00:04.5]} 27. Qg5 {[%clk 0:00:39]} 27... Qe6 {[%clk
0:00:03.4]} 28. Rfe1 {[%clk 0:00:25.1]} 28... Rg8 {[%clk 0:00:02.9]} 29. Qh6
{[%clk 0:00:21.7]} 29... Bg3 {[%clk 0:00:01.6]} 30. Bf2 {[%clk 0:00:19]} 30...
Qf5 {[%clk 0:00:01.1]} 31. Bxg3 {[%clk 0:00:17.8]} 31... Rxg3 {[%clk 0:00:02]}
32. Qf8+ {[%clk 0:00:17.6]} 32... Ka7 {[%clk 0:00:02.3]} 33. Qc5+ {[%clk
0:00:17.5]} 33... Ka8 {[%clk 0:00:02.7]} 34. Qc8+ {[%clk 0:00:17.8]} 34... Ka7
{[%clk 0:00:02.7]} 35. Qxf5 {[%clk 0:00:16.9]} 1-0

[Event "*** SCC Grand Prix: Titled Tuesday Blitz"]
[Site "Chess.com"]
[Date "2020.06.02"]
[Round "3"]
[White "FMOlexandrProhorov"]
[Black "Fortitudine"]
[Result "0-1"]
[WhiteElo "2069"]
[BlackElo "2316"]
[TimeControl "180+1"]
[EndTime "10:28:49 PDT"]
[Termination "Fortitudine won on time"]

1. Nf3 {[%clk 0:03:00.9]} 1... Nf6 {[%clk 0:02:59.1]} 2. c4 {[%clk 0:02:59.3]}
2... c5 {[%clk 0:02:58.4]} 3. Nc3 {[%clk 0:02:57.2]} 3... Nc6 {[%clk 0:02:52.9]}
4. d4 {[%clk 0:02:57.3]} 4... cxd4 {[%clk 0:02:52.8]} 5. Nxd4 {[%clk 0:02:57.1]}
5... g6 {[%clk 0:02:52]} 6. e4 {[%clk 0:02:52.9]} 6... d6 {[%clk 0:02:50.8]} 7.
f3 {[%clk 0:02:51.9]} 7... Bg7 {[%clk 0:02:50.3]} 8. Be3 {[%clk 0:02:51.9]} 8...
O-O {[%clk 0:02:48.9]} 9. Qd2 {[%clk 0:02:52.1]} 9... Bd7 {[%clk 0:02:44.8]} 10.
Be2 {[%clk 0:02:51.9]} 10... Nxd4 {[%clk 0:02:40.9]} 11. Bxd4 {[%clk 0:02:51.5]}
11... Bc6 {[%clk 0:02:41.5]} 12. O-O {[%clk 0:02:51.7]} 12... a5 {[%clk
0:02:39.9]} 13. b3 {[%clk 0:02:48.7]} 13... Nd7 {[%clk 0:02:36.1]} 14. Kh1
{[%clk 0:02:40.8]} 14... Bxd4 {[%clk 0:02:33.3]} 15. Qxd4 {[%clk 0:02:41]} 15...
Qb6 {[%clk 0:02:33.5]} 16. Qd2 {[%clk 0:02:36.5]} 16... Kg7 {[%clk 0:02:18.7]}
17. f4 {[%clk 0:02:30.9]} 17... Nc5 {[%clk 0:02:13.5]} 18. Bd3 {[%clk
0:02:27.1]} 18... a4 {[%clk 0:02:04.5]} 19. Rab1 {[%clk 0:02:00.5]} 19... axb3
{[%clk 0:01:56.8]} 20. axb3 {[%clk 0:02:00.5]} 20... Qb4 {[%clk 0:01:29.6]} 21.
Qb2 {[%clk 0:01:51.1]} 21... Kg8 {[%clk 0:01:27.5]} 22. f5 {[%clk 0:01:49.7]}
22... Nxd3 {[%clk 0:01:24.8]} 23. Qc2 {[%clk 0:01:35.6]} 23... Ne5 {[%clk
0:01:16.4]} 24. Ne2 {[%clk 0:01:32.3]} 24... Qc5 {[%clk 0:01:01.7]} 25. Rf4
{[%clk 0:01:24]} 25... Qe3 {[%clk 0:00:59.1]} 26. Rbf1 {[%clk 0:01:17]} 26...
Ra3 {[%clk 0:00:51.1]} 27. Qd1 {[%clk 0:00:45.9]} 27... Bxe4 {[%clk 0:00:34.2]}
28. fxg6 {[%clk 0:00:33.5]} 28... hxg6 {[%clk 0:00:35.1]} 29. Ng3 {[%clk
0:00:30.3]} 29... Bc6 {[%clk 0:00:32.8]} 30. Rh4 {[%clk 0:00:28.2]} 30... Nd3
{[%clk 0:00:21.4]} 31. Qg4 {[%clk 0:00:05.7]} 31... Nf2+ {[%clk 0:00:17.2]} 32.
Rxf2 {[%clk 0:00:05.6]} 32... Qxf2 {[%clk 0:00:18.1]} 33. Ne4 {[%clk 0:00:02.4]}
33... Ra1+ {[%clk 0:00:17.8]} 0-1

[Event "*** SCC Grand Prix: Titled Tuesday Blitz"]
[Site "Chess.com"]
[Date "2020.06.02"]
[Round "3"]
[White "BJthechessgod"]
[Black "GMJustin"]
[Result "1-0"]
[WhiteElo "2063"]
[BlackElo "2285"]
[TimeControl "180+1"]
[EndTime "10:28:49 PDT"]
[Termination "BJthechessgod won on time"]

1. e4 {[%clk 0:03:00.9]} 1... c5 {[%clk 0:02:52.4]} 2. Nf3 {[%clk 0:02:59.6]}
2... d6 {[%clk 0:02:52]} 3. d4 {[%clk 0:02:56.6]} 3... cxd4 {[%clk 0:02:51.5]}
4. Nxd4 {[%clk 0:02:57.5]} 4... Nf6 {[%clk 0:02:51.2]} 5. Nc3 {[%clk 0:02:57.4]}
5... a6 {[%clk 0:02:51.6]} 6. Bc4 {[%clk 0:02:55.3]} 6... e6 {[%clk 0:02:50.6]}
7. Bb3 {[%clk 0:02:48.9]} 7... b5 {[%clk 0:02:48.4]} 8. O-O {[%clk 0:02:47.6]}
8... Be7 {[%clk 0:02:44.7]} 9. f4 {[%clk 0:02:32.1]} 9... Bb7 {[%clk 0:02:14.5]}
10. Bxe6 {[%clk 0:02:14.3]} 10... fxe6 {[%clk 0:01:57.4]} 11. Nxe6 {[%clk
0:02:13.4]} 11... Qb6+ {[%clk 0:01:53.5]} 12. Kh1 {[%clk 0:02:12.5]} 12... Kf7
{[%clk 0:01:44.9]} 13. Ng5+ {[%clk 0:02:08.6]} 13... Kg8 {[%clk 0:01:35.6]} 14.
e5 {[%clk 0:02:08.5]} 14... Qc6 {[%clk 0:01:05.2]} 15. Rf2 {[%clk 0:01:41.6]}
15... Nd5 {[%clk 0:00:45.7]} 16. Qg4 {[%clk 0:01:01.8]} 16... dxe5 {[%clk
0:00:34.9]} 17. fxe5 {[%clk 0:00:57.3]} 17... Bxg5 {[%clk 0:00:25.4]} 18. Bxg5
{[%clk 0:00:48.8]} 18... Nd7 {[%clk 0:00:25]} 19. e6 {[%clk 0:00:33.2]} 19...
Ne5 {[%clk 0:00:20.5]} 20. Qd4 {[%clk 0:00:33]} 20... h6 {[%clk 0:00:16.4]} 21.
Qxe5 {[%clk 0:00:29.2]} 21... hxg5 {[%clk 0:00:15.3]} 22. Rf7 {[%clk 0:00:19.5]}
22... Nf6 {[%clk 0:00:14.8]} 23. Rg1 {[%clk 0:00:18.4]} 23... Re8 {[%clk
0:00:12.8]} 24. Qxg5 {[%clk 0:00:14]} 24... Rh7 {[%clk 0:00:03.5]} 25. Rxf6
{[%clk 0:00:13.6]} 25... Rxe6 {[%clk 0:00:03.5]} 26. Rxe6 {[%clk 0:00:12.9]}
26... Qxe6 {[%clk 0:00:03.6]} 27. Qd8+ {[%clk 0:00:11.5]} 27... Kf7 {[%clk
0:00:03.7]} 28. Rf1+ {[%clk 0:00:11.4]} 28... Kg6 {[%clk 0:00:03.5]} 29. Qd3+
{[%clk 0:00:11.4]} 29... Kh6 {[%clk 0:00:03.7]} 30. Qd2+ {[%clk 0:00:04.6]}
30... g5 {[%clk 0:00:02.8]} 31. Qd3 {[%clk 0:00:05.5]} 31... Rf7 {[%clk
0:00:02.1]} 32. Rxf7 {[%clk 0:00:03.3]} 32... Qxf7 {[%clk 0:00:02.3]} 33. Qh3+
{[%clk 0:00:03.6]} 1-0

[Event "*** SCC Grand Prix: Titled Tuesday Blitz"]
[Site "Chess.com"]
[Date "2020.06.02"]
[Round "3"]
[White "Goryachkina"]
[Black "Igrok3069"]
[Result "1/2-1/2"]
[WhiteElo "2611"]
[BlackElo "2767"]
[TimeControl "180+1"]
[EndTime "10:28:50 PDT"]
[Termination "Game drawn by repetition"]

1. d4 {[%clk 0:03:00.9]} 1... d5 {[%clk 0:02:59.7]} 2. c4 {[%clk 0:03:00.6]}
2... c6 {[%clk 0:03:00.3]} 3. Nf3 {[%clk 0:02:56]} 3... Nf6 {[%clk 0:03:00.8]}
4. Nc3 {[%clk 0:02:56.3]} 4... e6 {[%clk 0:03:01]} 5. e3 {[%clk 0:02:56.2]} 5...
Nbd7 {[%clk 0:03:00.3]} 6. Qc2 {[%clk 0:02:56.4]} 6... Bd6 {[%clk 0:02:59.8]} 7.
b3 {[%clk 0:02:56.5]} 7... O-O {[%clk 0:02:59.2]} 8. Be2 {[%clk 0:02:56.6]} 8...
e5 {[%clk 0:02:59.3]} 9. cxd5 {[%clk 0:02:39]} 9... cxd5 {[%clk 0:02:59.1]} 10.
Nb5 {[%clk 0:02:37.4]} 10... Bb4+ {[%clk 0:02:46.2]} 11. Bd2 {[%clk 0:02:36.3]}
11... Bxd2+ {[%clk 0:02:45.8]} 12. Nxd2 {[%clk 0:02:30.3]} 12... e4 {[%clk
0:02:45.7]} 13. O-O {[%clk 0:02:21.8]} 13... a6 {[%clk 0:02:45.2]} 14. Nc3
{[%clk 0:02:20.4]} 14... Re8 {[%clk 0:02:30.9]} 15. Rac1 {[%clk 0:02:18.2]}
15... Nf8 {[%clk 0:02:28.4]} 16. Na4 {[%clk 0:02:16]} 16... b5 {[%clk
0:02:23.1]} 17. Nc5 {[%clk 0:02:15]} 17... Ng6 {[%clk 0:02:22.8]} 18. a4 {[%clk
0:02:10.5]} 18... b4 {[%clk 0:02:18.2]} 19. Rfe1 {[%clk 0:02:02.9]} 19... h5
{[%clk 0:02:17.3]} 20. Bf1 {[%clk 0:01:40.8]} 20... Qd6 {[%clk 0:02:14.5]} 21.
h3 {[%clk 0:01:39.6]} 21... Nh7 {[%clk 0:02:04.8]} 22. f4 {[%clk 0:01:29]} 22...
exf3 {[%clk 0:02:01.7]} 23. Nxf3 {[%clk 0:01:28.6]} 23... Nf6 {[%clk 0:01:56]}
24. Bd3 {[%clk 0:01:27]} 24... Qg3 {[%clk 0:01:29.9]} 25. Qf2 {[%clk 0:01:21.7]}
25... Qxf2+ {[%clk 0:01:24.3]} 26. Kxf2 {[%clk 0:01:21.7]} 26... Ne7 {[%clk
0:01:15.6]} 27. Ne5 {[%clk 0:01:15.3]} 27... a5 {[%clk 0:01:11.9]} 28. Bb5
{[%clk 0:01:09.5]} 28... Rd8 {[%clk 0:01:12.1]} 29. Ke2 {[%clk 0:00:54.7]} 29...
Rb8 {[%clk 0:01:10.9]} 30. Kd2 {[%clk 0:00:50.8]} 30... Rb6 {[%clk 0:01:10.6]}
31. Rg1 {[%clk 0:00:45.4]} 31... h4 {[%clk 0:01:01.9]} 32. Rgf1 {[%clk
0:00:40.1]} 32... g6 {[%clk 0:00:26.3]} 33. Rf4 {[%clk 0:00:33.2]} 33... g5
{[%clk 0:00:26.4]} 34. Rff1 {[%clk 0:00:32.3]} 34... Kg7 {[%clk 0:00:26.5]} 35.
Bd3 {[%clk 0:00:20.3]} 35... Rf8 {[%clk 0:00:22]} 36. Rf2 {[%clk 0:00:19.3]}
36... Rd6 {[%clk 0:00:21.9]} 37. Rcf1 {[%clk 0:00:19.2]} 37... Neg8 {[%clk
0:00:19.5]} 38. Bc2 {[%clk 0:00:17.3]} 38... Nh6 {[%clk 0:00:19.1]} 39. Bd3
{[%clk 0:00:17.4]} 39... Re8 {[%clk 0:00:19.2]} 40. Bc2 {[%clk 0:00:17.3]} 40...
Rf8 {[%clk 0:00:19.6]} 41. Bd3 {[%clk 0:00:17.6]} 41... Re8 {[%clk 0:00:20.2]}
42. Bc2 {[%clk 0:00:17.9]} 42... Rf8 {[%clk 0:00:20.7]} 1/2-1/2

[Event "*** SCC Grand Prix: Titled Tuesday Blitz"]
[Site "Chess.com"]
[Date "2020.06.02"]
[Round "3"]
[White "rubhani"]
[Black "ahappypawn"]
[Result "1-0"]
[WhiteElo "2568"]
[BlackElo "2366"]
[TimeControl "180+1"]
[EndTime "10:28:51 PDT"]
[Termination "rubhani won on time"]

1. e4 {[%clk 0:03:00.9]} 1... g6 {[%clk 0:02:59.9]} 2. d4 {[%clk 0:03:00.4]}
2... Bg7 {[%clk 0:03:00.3]} 3. Nc3 {[%clk 0:03:00.7]} 3... d6 {[%clk 0:03:00.9]}
4. Nf3 {[%clk 0:03:00.9]} 4... Nf6 {[%clk 0:03:01.3]} 5. Be3 {[%clk 0:03:01.1]}
5... O-O {[%clk 0:02:59.6]} 6. Qd2 {[%clk 0:03:01.4]} 6... a6 {[%clk 0:03:00]}
7. Bh6 {[%clk 0:03:00.8]} 7... b5 {[%clk 0:02:53.7]} 8. Bxg7 {[%clk 0:02:57.9]}
8... Kxg7 {[%clk 0:02:53.2]} 9. a3 {[%clk 0:02:53.8]} 9... Bb7 {[%clk
0:02:47.7]} 10. Bd3 {[%clk 0:02:51]} 10... Nbd7 {[%clk 0:02:43.7]} 11. O-O-O
{[%clk 0:02:41.4]} 11... e5 {[%clk 0:02:30.3]} 12. h4 {[%clk 0:02:36.1]} 12...
h5 {[%clk 0:02:05.7]} 13. d5 {[%clk 0:02:29.8]} 13... Nc5 {[%clk 0:01:55.1]} 14.
Ng5 {[%clk 0:02:29.5]} 14... c6 {[%clk 0:01:47.2]} 15. dxc6 {[%clk 0:02:13.6]}
15... Bxc6 {[%clk 0:01:48.1]} 16. f3 {[%clk 0:02:09.2]} 16... Qb6 {[%clk
0:01:39]} 17. Be2 {[%clk 0:01:37.1]} 17... Rad8 {[%clk 0:01:06.4]} 18. Nd5
{[%clk 0:01:36.6]} 18... Bxd5 {[%clk 0:00:52.4]} 19. exd5 {[%clk 0:01:37.5]}
19... a5 {[%clk 0:00:50.4]} 20. g4 {[%clk 0:01:31.2]} 20... b4 {[%clk
0:00:48.7]} 21. Qe3 {[%clk 0:01:10.5]} 21... Rb8 {[%clk 0:00:28.1]} 22. Rhf1
{[%clk 0:00:26.2]} 22... Rfc8 {[%clk 0:00:18.9]} 23. f4 {[%clk 0:00:23.4]} 23...
e4 {[%clk 0:00:11.6]} 24. gxh5 {[%clk 0:00:22.5]} 24... Nd3+ {[%clk 0:00:10.3]}
25. Rxd3 {[%clk 0:00:21.9]} 25... exd3 {[%clk 0:00:10]} 26. Qxd3 {[%clk
0:00:21.7]} 26... bxa3 {[%clk 0:00:08.6]} 27. Qxa3 {[%clk 0:00:21.7]} 27... Nxd5
{[%clk 0:00:05.8]} 28. h6+ {[%clk 0:00:20.4]} 28... Kxh6 {[%clk 0:00:04.5]} 29.
Nxf7+ {[%clk 0:00:20.3]} 29... Kg7 {[%clk 0:00:05.1]} 30. Nxd6 {[%clk
0:00:20.5]} 30... Rc6 {[%clk 0:00:02.7]} 31. Ne4 {[%clk 0:00:19]} 31... Ne3
{[%clk 0:00:01.9]} 32. Bd3 {[%clk 0:00:09.9]} 1-0

[Event "*** SCC Grand Prix: Titled Tuesday Blitz"]
[Site "Chess.com"]
[Date "2020.06.02"]
[Round "3"]
[White "Oligan22"]
[Black "Pavel_Mir"]
[Result "0-1"]
[WhiteElo "2420"]
[BlackElo "2268"]
[TimeControl "180+1"]
[EndTime "10:28:51 PDT"]
[Termination "Pavel_Mir won by checkmate"]

1. e4 {[%clk 0:03:00.9]} 1... e5 {[%clk 0:02:56.1]} 2. Nf3 {[%clk 0:03:00.5]}
2... Nc6 {[%clk 0:02:56.3]} 3. Nc3 {[%clk 0:02:59.1]} 3... Nf6 {[%clk
0:02:55.7]} 4. Be2 {[%clk 0:02:59.2]} 4... d5 {[%clk 0:02:51.8]} 5. exd5 {[%clk
0:03:00.1]} 5... Nxd5 {[%clk 0:02:51.8]} 6. O-O {[%clk 0:03:00.7]} 6... Nxc3
{[%clk 0:02:51.4]} 7. bxc3 {[%clk 0:03:01.6]} 7... Be7 {[%clk 0:02:51.1]} 8. d3
{[%clk 0:02:55.1]} 8... O-O {[%clk 0:02:50.9]} 9. Re1 {[%clk 0:02:55.2]} 9...
Bf6 {[%clk 0:02:47.4]} 10. Nd2 {[%clk 0:02:44.4]} 10... g6 {[%clk 0:02:46.6]}
11. Rb1 {[%clk 0:02:39.8]} 11... b6 {[%clk 0:02:40.9]} 12. Bf3 {[%clk
0:02:39.9]} 12... Bb7 {[%clk 0:02:40.1]} 13. Nc4 {[%clk 0:02:39.3]} 13... Re8
{[%clk 0:02:21.3]} 14. a4 {[%clk 0:02:39.1]} 14... e4 {[%clk 0:02:11.8]} 15.
Rxe4 {[%clk 0:02:30.6]} 15... Bxc3 {[%clk 0:02:04.3]} 16. Rb3 {[%clk 0:02:02.5]}
16... Bg7 {[%clk 0:01:59.5]} 17. h3 {[%clk 0:01:45.2]} 17... Rb8 {[%clk
0:01:41.7]} 18. Rxe8+ {[%clk 0:01:35.8]} 18... Qxe8 {[%clk 0:01:41.8]} 19. Bf4
{[%clk 0:01:36.4]} 19... Nd4 {[%clk 0:01:37.2]} 20. Bxb7 {[%clk 0:01:25.9]}
20... Rxb7 {[%clk 0:01:37.4]} 21. Bg3 {[%clk 0:01:05.6]} 21... Nxb3 {[%clk
0:01:36.4]} 22. cxb3 {[%clk 0:01:06.5]} 22... Qe6 {[%clk 0:01:28.5]} 23. Qf3
{[%clk 0:01:05.9]} 23... c6 {[%clk 0:01:17.3]} 24. a5 {[%clk 0:00:48.2]} 24...
bxa5 {[%clk 0:01:07.9]} 25. Nxa5 {[%clk 0:00:49.1]} 25... Rb5 {[%clk 0:01:05.2]}
26. Nxc6 {[%clk 0:00:34.2]} 26... Rxb3 {[%clk 0:01:03.7]} 27. Nxa7 {[%clk
0:00:31]} 27... h5 {[%clk 0:01:02.7]} 28. Nc6 {[%clk 0:00:27.7]} 28... Kh7
{[%clk 0:01:00.9]} 29. Qe4 {[%clk 0:00:18.3]} 29... Rc3 {[%clk 0:00:42.6]} 30.
Ne5 {[%clk 0:00:15.7]} 30... Rc1+ {[%clk 0:00:18.8]} 31. Kh2 {[%clk 0:00:15.2]}
31... Rd1 {[%clk 0:00:18.3]} 32. d4 {[%clk 0:00:15]} 32... Qa2 {[%clk 0:00:16]}
33. Qf3 {[%clk 0:00:13.1]} 33... Qb1 {[%clk 0:00:14.9]} 34. Bf4 {[%clk
0:00:11.9]} 34... Rh1+ {[%clk 0:00:14.8]} 35. Kg3 {[%clk 0:00:11.8]} 35... Qf5
{[%clk 0:00:14.9]} 36. h4 {[%clk 0:00:11]} 36... Bf6 {[%clk 0:00:14.5]} 37. Nxf7
{[%clk 0:00:10.2]} 37... Bxh4# {[%clk 0:00:14.3]} 0-1